bitfinex-derivatives/quotes_BTCF0:USTF0_20251213
["timestamp","ask_amount","ask_price","bid_price","bid_amount"]
[1765659568104,0.00016645,90127.0,90126.0,0.07336]
[1765659568307,0.00016645,90127.0,90126.0,0.4452535]
[1765659569404,0.00216645,90127.0,90126.0,0.4452535]
[1765659570106,0.00316645,90127.0,90126.0,0.4452535]
[1765659578508,0.07288924,90131.0,90130.0,0.07336]
[1765659578715,0.08709877,90142.0,90141.0,0.05687]
[1765659579014,0.0562,90142.0,90141.0,0.41767]
[1765659579904,0.0582,90142.0,90141.0,0.41767]
[1765659580510,0.0612,90142.0,90141.0,0.41767]
[1765659581306,0.0632,90142.0,90141.0,0.41767]
[1765659581914,0.15126568,90142.0,90141.0,0.41767]
[1765659583416,0.12284568,90142.0,90141.0,0.41767]
[1765659583615,0.09506568,90142.0,90141.0,0.41767]
[1765659583915,0.12284568,90142.0,90141.0,0.41767]
[1765659584816,0.15126568,90142.0,90141.0,0.41767]
[1765659585408,0.09506568,90142.0,90141.0,0.41767]
[1765659585810,0.12284568,90142.0,90141.0,0.41767]
[1765659586513,0.12284568,90142.0,90141.0,0.05687]
[1765659586709,0.12284568,90142.0,90141.0,0.41767]
[1765659587017,0.03478,90142.0,90141.0,0.41767]
[1765659587216,0.007,90142.0,90141.0,0.41767]
[1765659587616,0.00562423,90145.0,90141.0,0.41767]
[1765659587617,0.02778,90145.0,90144.0,0.0275812]
[1765659587918,0.02794645,90151.0,90150.0,0.07158]
[1765659588109,0.06204742,90151.0,90150.0,0.07158]
[1765659588311,0.67396,90163.0,90150.0,0.07158]
[1765659588312,0.19582135,90167.0,90166.0,0.05687]
[1765659588511,0.19582135,90167.0,90166.0,0.41767]
[1765659588706,0.0562,90167.0,90166.0,0.41767]
[1765659590316,0.0572,90167.0,90166.0,0.41767]
[1765659590622,0.0582,90167.0,90166.0,0.41767]
[1765659600517,0.0582,90167.0,90166.0,0.0271]
[1765659600716,0.13759685,90167.0,90166.0,0.0271]
[1765659601027,0.13759685,90167.0,90166.0,0.05424]
[1765659605313,0.0582,90167.0,90166.0,0.05424]
[1765659607433,0.07552,90159.0,90158.0,0.41759]
[1765659608924,0.07552,90159.0,90158.0,0.41859]
[1765659612828,0.07552,90159.0,90158.0,0.4296796]
[1765659614535,0.07552,90159.0,90158.0,0.41859]
[1765659615540,0.1549734,90159.0,90158.0,0.41859]
[1765659616437,0.07552,90159.0,90158.0,0.41859]
[1765659617642,0.07552,90159.0,90158.0,0.4296796]
[1765659626764,0.07552,90159.0,90158.0,0.41859]
[1765659632570,0.07552,90159.0,90158.0,0.05779]
[1765659632772,0.07552,90159.0,90158.0,0.41859]
[1765659637568,0.059,90159.0,90158.0,0.41859]
[1765659638474,0.059,90159.0,90158.0,0.41959]
[1765659638663,0.059,90159.0,90158.0,0.41859]
[1765659639272,0.06,90159.0,90158.0,0.41759]
[1765659639674,0.1592583,90159.0,90158.0,0.41759]
[1765659641674,0.1002583,90159.0,90158.0,0.41759]
[1765659643375,0.0992583,90159.0,90158.0,0.41759]
[1765659643577,0.1012583,90159.0,90158.0,0.41759]
[1765659644972,0.0992583,90159.0,90158.0,0.41759]
[1765659645279,0.1012583,90159.0,90158.0,0.41759]
[1765659648584,0.1012583,90159.0,90158.0,0.05679]
[1765659648785,0.1012583,90159.0,90158.0,0.41759]
[1765659649682,0.002,90159.0,90158.0,0.41759]
[1765659651083,0.002,90159.0,90158.0,0.05679]
[1765659651284,0.002,90159.0,90158.0,0.41759]
[1765659660095,0.002,90159.0,90158.0,0.05679]
[1765659660286,0.002,90159.0,90158.0,0.41759]
[1765659662698,0.002,90159.0,90158.0,0.42715]
[1765659663894,0.00556946,90161.0,90160.0,0.06917]
[1765659664082,0.0992583,90167.0,90166.0,0.0706986]
[1765659664288,0.0992583,90167.0,90166.0,0.4314986]
[1765659664594,0.10475422,90167.0,90166.0,0.4314986]
[1765659664994,0.00549592,90167.0,90166.0,0.4314986]
[1765659665195,0.0992583,90168.0,90167.0,0.05961]
[1765659665798,0.10492379,90168.0,90167.0,0.05961]
[1765659667304,0.10692379,90168.0,90167.0,0.05961]
[1765659669001,0.00766549,90168.0,90167.0,0.05961]
[1765659669590,0.00766549,90168.0,90167.0,0.42041]
[1765659671003,0.002,90168.0,90167.0,0.42041]
[1765659672003,0.04969964,90171.0,90170.0,0.07046]
[1765659672203,0.00016636,90176.0,90175.0,0.42041]
[1765659672592,0.00016636,90176.0,90175.0,0.4314975]
[1765659674199,0.00016636,90176.0,90175.0,0.4324975]
[1765659675302,0.00016636,90176.0,90175.0,0.4344975]
[1765659678397,0.05747636,90176.0,90175.0,0.42341]
[1765659679700,0.05747636,90176.0,90175.0,0.003]
[1765659679904,0.66143636,90176.0,90175.0,0.003]
[1765659680694,0.66143636,90176.0,90175.0,0.001]
[1765659680895,0.66143636,90176.0,90175.0,0.002]
[1765659682700,0.66143636,90176.0,90175.0,0.001]
[1765659682907,0.66143636,90176.0,90175.0,0.002]
[1765659685213,1.06143636,90176.0,90175.0,0.002]
[1765659686302,1.06143636,90176.0,90175.0,0.001]
[1765659686508,1.06143636,90176.0,90175.0,0.002]
[1765659690214,1.02223636,90176.0,90175.0,0.002]
[1765659697439,0.66143636,90176.0,90175.0,0.002]
[1765659697642,1.02223636,90176.0,90175.0,0.002]
[1765659699127,1.03928636,90176.0,90175.0,0.002]
[1765659700339,1.43928636,90176.0,90175.0,0.002]
[1765659704845,1.03928636,90176.0,90175.0,0.002]
[1765659706138,1.03928636,90176.0,90175.0,0.001]
[1765659706339,0.05845,90158.0,90157.0,0.05693636]
[1765659707451,0.06045,90158.0,90157.0,0.05693636]
[1765659708144,0.14017425,90158.0,90157.0,0.05693636]
[1765659708351,0.06045,90158.0,90157.0,0.05693636]
[1765659709042,0.0660895,90158.0,90157.0,0.05693636]
[1765659709841,0.0660895,90158.0,90157.0,0.00016636]
[1765659710348,0.16574709,90158.0,90157.0,0.00016636]
[1765659711153,0.0660895,90158.0,90157.0,0.02934636]
[1765659711849,0.0660895,90158.0,90157.0,0.05693636]
[1765659724057,0.0833695,90158.0,90157.0,0.05693636]
[1765659726775,0.0833695,90158.0,90157.0,0.02934636]
[1765659727751,0.0833695,90158.0,90157.0,0.05849636]
[1765659730959,0.13582629,90158.0,90157.0,0.05849636]
[1765659731159,0.0833695,90158.0,90157.0,0.05849636]
[1765659731553,0.13685103,90158.0,90157.0,0.05849636]
[1765659732159,0.13685103,90158.0,90157.0,0.00016636]
[1765659733655,0.0833695,90158.0,90157.0,0.02752636]
[1765659734056,0.0833695,90158.0,90157.0,0.05667636]
[1765659738558,0.4441695,90158.0,90157.0,0.05667636]
[1765659739762,0.0833695,90158.0,90157.0,0.05667636]
[1765659739967,0.4441695,90158.0,90157.0,0.05667636]
[1765659744468,0.0833695,90158.0,90157.0,0.05667636]
[1765659744669,0.4441695,90158.0,90157.0,0.05667636]
[1765659746273,0.0833695,90158.0,90157.0,0.05667636]
[1765659762870,0.0833695,90158.0,90157.0,0.00016636]
[1765659763378,0.0833695,90158.0,90157.0,0.02766636]
[1765659763680,0.0833695,90158.0,90157.0,0.00016636]
[1765659764376,0.0833695,90158.0,90157.0,0.02766636]
[1765659765673,0.0833695,90158.0,90157.0,0.05532636]
[1765659767084,0.0833695,90158.0,90157.0,0.02766636]
[1765659768584,0.0833695,90158.0,90157.0,0.05532636]
[1765659769784,0.4441695,90158.0,90157.0,0.05532636]
[1765659771480,0.4441695,90158.0,90157.0,0.00016636]
[1765659771674,0.4441695,90158.0,90157.0,0.02751467]
[1765659773686,0.4441695,90158.0,90157.0,0.05517467]
[1765659778583,0.0833695,90158.0,90157.0,0.05517467]
[1765659778791,0.4441695,90158.0,90157.0,0.05517467]
[1765659778983,0.4441695,90158.0,90157.0,0.02751467]
[1765659779189,0.3857195,90158.0,90157.0,1.467e-05]
[1765659779393,0.4442195,90158.0,90157.0,0.02942467]
[1765659782492,0.4442195,90158.0,90157.0,0.05937467]
[1765659784596,0.0834195,90158.0,90157.0,0.05937467]
[1765659784797,0.4442195,90158.0,90157.0,0.05937467]
[1765659786808,0.4442195,90158.0,90157.0,0.02942467]
[1765659792301,0.4442195,90158.0,90157.0,0.05937467]
[1765659799404,0.0834195,90158.0,90157.0,0.05937467]
[1765659849766,0.14727186,90158.0,90157.0,1.467e-05]
[1765659850156,0.07458,90150.0,90149.0,0.02773]
[1765659850467,1.18035457,90150.0,90149.0,0.00153354]
[1765659850863,1.12802,90150.0,90149.0,0.00153354]
[1765659851060,0.05737,90139.0,90138.0,0.40548]
[1765659851265,0.05737,90139.0,90138.0,0.04468]
[1765659853352,0.05737,90139.0,90138.0,0.04568]
[1765659853957,0.05737,90139.0,90138.0,0.04468]
[1765659854163,0.05837,90139.0,90138.0,0.04468]
[1765659855366,0.06379498,90139.0,90138.0,0.04468]
[1765659873372,0.06379498,90139.0,90138.0,0.02234]
[1765659873769,0.0723,90130.0,90129.0,0.04484636]
[1765659875085,0.16216984,90130.0,90129.0,0.04484636]
[1765659875475,0.16216984,90130.0,90129.0,0.02250636]
[1765659875671,0.16216984,90130.0,90129.0,0.00016636]
[1765659875874,0.16216984,90130.0,90129.0,0.02250636]
[1765659876075,0.16216984,90130.0,90129.0,0.04484636]
[1765659900999,0.16216984,90130.0,90129.0,0.00016636]
[1765659901501,0.16216984,90130.0,90115.0,0.3608]
[1765659901502,0.07603,90116.0,90115.0,0.3608]
[1765659901794,0.05955,90115.0,90114.0,0.00011779]
[1765659902193,0.05955,90115.0,90114.0,0.02245779]
[1765659902398,0.05955,90115.0,90114.0,0.04479779]
[1765659903904,0.05955,90115.0,90114.0,0.05789279]
[1765659904194,0.05955,90115.0,90114.0,0.05989279]
[1765659904803,0.01648,90118.0,90116.0,0.0110947]
[1765659904999,0.01648,90122.0,90121.0,0.04468]
[1765659905200,0.02216059,90122.0,90121.0,0.04468]
[1765659905497,0.08171059,90122.0,90121.0,0.04468]
[1765659906497,0.08171059,90122.0,90121.0,0.04568]
[1765659906803,0.08171059,90122.0,90121.0,0.04668]
[1765659913906,0.08171059,90122.0,90121.0,0.0577741]
[1765659918100,0.08171059,90122.0,90121.0,0.04668]
[1765659928821,0.08171059,90122.0,90121.0,0.02434]
[1765659929026,0.08171059,90122.0,90121.0,0.002]
[1765659937105,0.05687,90115.0,90114.0,0.00011779]
[1765659937324,1.1625541,90115.0,90114.0,0.00011779]
[1765659937510,1.26218642,90115.0,90114.0,0.00011779]
[1765659937918,1.21042232,90115.0,90114.0,0.00011779]
[1765659938222,1.11079,90115.0,90114.0,0.00011779]
[1765659938421,1.11079,90115.0,90114.0,0.00211779]
[1765659938620,1.11079,90115.0,90114.0,0.00411779]
[1765659943625,1.11079,90115.0,90114.0,0.00011779]
[1765659944727,0.07481,90099.0,90098.0,0.055777]
[1765659944924,0.13455576,90099.0,90098.0,0.055777]
[1765659945820,0.13465001,90099.0,90098.0,0.055777]
[1765659946526,0.13465001,90099.0,90098.0,0.058777]
[1765659946827,0.13465001,90099.0,90098.0,0.060777]
[1765659949925,0.07490425,90099.0,90098.0,0.060777]
[1765659951026,0.07490425,90099.0,90098.0,0.04968]
[1765659951729,0.07490425,90099.0,90098.0,0.060777]
[1765659952230,0.13465001,90099.0,90098.0,0.060777]
[1765659954027,0.13465001,90099.0,90098.0,0.04968]
[1765659957237,0.07490425,90099.0,90098.0,0.04968]
[1765659961136,0.15456526,90099.0,90098.0,0.04968]
[1765659961333,0.07490425,90099.0,90098.0,0.04968]
[1765659961539,0.08577265,90099.0,90098.0,0.04968]
[1765659961739,0.07490425,90099.0,90098.0,0.04968]
[1765659964140,0.07490425,90099.0,90098.0,0.005]
[1765659964141,0.15456526,90099.0,90098.0,0.005]
[1765659964446,0.13835181,90099.0,90098.0,0.005]
[1765659964640,0.05716,90083.0,90082.0,0.41148]
[1765659964846,0.05726037,90083.0,90082.0,0.41148]
[1765659965638,0.05726037,90083.0,90082.0,0.05068]
[1765659965840,0.1368987,90083.0,90082.0,0.0617789]
[1765659966035,0.08518759,90083.0,90082.0,0.0657789]
[1765659966233,0.06270926,90083.0,90082.0,0.0697789]
[1765659966438,0.06270926,90083.0,90082.0,0.0657789]
[1765659966633,0.06270926,90083.0,90082.0,0.0667789]
[1765659967233,0.06270926,90083.0,90082.0,0.05568]
[1765659967645,0.06270926,90083.0,90082.0,0.05168]
[1765659967845,0.06270926,90083.0,90082.0,0.05268]
[1765659972257,0.12231494,90083.0,90082.0,0.05268]
[1765659976255,0.06270926,90083.0,90082.0,0.05268]
[1765659981459,0.12231494,90083.0,90082.0,0.05268]
[1765659983270,0.06270926,90083.0,90082.0,0.05268]
[1765659993670,0.06270926,90083.0,90082.0,0.002]
[1765659993877,0.06270926,90083.0,90071.0,0.3608]
[1765659993878,0.07252,90072.0,90071.0,0.3608]
[1765659994076,0.07252,90063.0,90062.0,0.3608]
[1765659994275,0.07263779,90063.0,90062.0,0.38814]
[1765659994481,0.07263779,90063.0,90062.0,0.41548]
[1765659994676,0.04455779,90063.0,90062.0,0.41548]
[1765659994876,0.07263779,90063.0,90062.0,0.41548]
[1765659995077,0.08373909,90063.0,90062.0,0.4265814]
[1765659995675,0.08373909,90063.0,90062.0,0.41848]
[1765659996385,0.08373909,90063.0,90062.0,0.42048]
[1765659996970,0.08373909,90063.0,90062.0,0.41748]
[1765659997175,0.08373909,90063.0,90062.0,0.41948]
[1765659998176,0.08920695,90063.0,90062.0,0.41948]
[1765659999076,0.17686148,90063.0,90062.0,0.41948]
[1765660015798,0.17686148,90063.0,90062.0,0.39214]
[1765660016692,0.17686148,90063.0,90062.0,0.41948]
[1765660025496,0.16576018,90063.0,90062.0,0.41948]
[1765660025696,0.11024018,90063.0,90062.0,0.41948]
[1765660026207,0.13772018,90063.0,90062.0,0.41948]
[1765660026405,0.16769018,90063.0,90062.0,0.41948]
[1765660029107,0.16769018,90063.0,90062.0,0.39214]
[1765660029303,0.16769018,90063.0,90062.0,0.41948]
[1765660040203,0.16769018,90063.0,90062.0,0.39214]
[1765660040810,0.16769018,90063.0,90062.0,0.41948]
[1765660046010,0.00558565,90063.0,90062.0,0.41948]
[1765660046214,0.00011779,90063.0,90062.0,0.41948]
[1765660046518,0.00016655,90072.0,90071.0,0.05468]
[1765660046703,0.00016655,90072.0,90071.0,0.41548]
[1765660047718,0.00016655,90072.0,90071.0,0.41648]
[1765660048218,0.08733613,90080.0,90079.0,0.05468]
[1765660048418,0.1377287,90081.0,90080.0,0.05468]
[1765660049213,0.05800159,90081.0,90080.0,0.05468]
[1765660050117,0.17354293,90081.0,90080.0,0.05468]
[1765660050416,0.08110613,90081.0,90080.0,0.05468]
[1765660050810,0.08210613,90081.0,90080.0,0.05468]
[1765660051513,0.05337613,90081.0,90080.0,0.05468]
[1765660052123,0.13296488,90081.0,90080.0,0.05468]
[1765660052323,0.05337613,90081.0,90080.0,0.05468]
[1765660052816,0.001,90081.0,90080.0,0.05468]
[1765660053024,0.05876,90081.0,90080.0,0.05468]
[1765660053812,0.14558041,90081.0,90080.0,0.05468]
[1765660055727,0.07958875,90083.0,90082.0,0.05468]
[1765660055913,0.00016655,90090.0,90089.0,0.0657781]
[1765660056116,0.10831875,90098.0,90097.0,0.0657771]
[1765660056325,0.02873,90098.0,90097.0,0.4265771]
[1765660056939,0.12597875,90100.0,90099.0,0.05468]
[1765660057123,0.15500875,90100.0,90099.0,0.05468]
[1765660057426,0.07542,90100.0,90099.0,0.05468]
[1765660058227,0.07742,90100.0,90099.0,0.05468]
[1765660058828,0.07942,90100.0,90099.0,0.05468]
[1765660064324,0.1389517,90100.0,90099.0,0.05468]
[1765660065231,0.07942,90100.0,90099.0,0.05468]
[1765660066424,0.13894911,90100.0,90099.0,0.05468]
[1765660067732,0.07942,90100.0,90099.0,0.05468]
[1765660077643,0.07942,90100.0,90099.0,0.41548]
[1765660081333,0.15900875,90100.0,90099.0,0.41548]
[1765660081534,0.07942,90100.0,90099.0,0.41548]
[1765660081936,0.15900875,90100.0,90099.0,0.41548]
[1765660083245,0.07942,90100.0,90099.0,0.41548]
[1765660089953,0.07942,90100.0,90099.0,0.3608]
[1765660091043,0.07942,90100.0,90099.0,0.38814]
[1765660092957,0.07942,90100.0,90099.0,0.41541]
[1765660093456,0.07942,90100.0,90099.0,0.3608]
[1765660093659,0.07942,90100.0,90099.0,0.41541]
[1765660094353,0.07942,90100.0,90099.0,0.05461]
[1765660095447,0.07942,90100.0,90099.0,0.02734]
[1765660096965,0.0757,90093.0,90092.0,0.4265076]
[1765660098557,0.0757,90093.0,90092.0,0.0657076]
[1765660099454,0.0767,90093.0,90092.0,0.0657076]
[1765660099864,0.15642787,90093.0,90092.0,0.0657076]
[1765660100366,0.15742787,90093.0,90092.0,0.0657076]
[1765660102374,0.15742787,90093.0,90092.0,0.05461]
[1765660102669,0.15742523,90093.0,90092.0,0.05461]
[1765660102855,0.0777,90093.0,90092.0,0.05461]
[1765660103052,0.15742523,90093.0,90092.0,0.05461]
[1765660103264,0.09905523,90093.0,90092.0,0.0657077]
[1765660103570,0.002,90093.0,90092.0,0.11031922]
[1765660103761,0.002,90093.0,90092.0,0.0657077]
[1765660104768,0.13700523,90099.0,90098.0,0.065777]
[1765660107168,0.13800523,90099.0,90098.0,0.065777]
[1765660107470,0.13900523,90099.0,90098.0,0.065777]
[1765660113275,0.13900523,90099.0,90098.0,0.05468]
[1765660126288,0.05928,90099.0,90098.0,0.05468]
[1765660132087,0.1390133,90099.0,90098.0,0.05468]
[1765660132393,0.05928,90099.0,90098.0,0.05468]
[1765660133790,0.05928,90099.0,90098.0,0.09809521]
[1765660133791,0.002,90099.0,90098.0,0.09809521]
[1765660134686,0.002,90099.0,90098.0,0.05468]
[1765660134890,0.07569,90099.0,90098.0,0.05468]
[1765660135391,0.07469,90099.0,90098.0,0.05468]
[1765660139895,0.07469,90099.0,90098.0,0.41548]
[1765660142200,0.07469,90099.0,90098.0,0.05468]
[1765660142403,0.07469,90099.0,90098.0,0.41548]
[1765660147503,0.07469,90099.0,90098.0,0.05468]
[1765660147692,0.07469,90099.0,90098.0,0.41548]
[1765660150103,0.01697,90102.0,90101.0,0.05468]
[1765660150399,0.07976152,90105.0,90104.0,0.05468]
[1765660151198,0.07976152,90105.0,90104.0,0.0657762]
[1765660151605,0.10857152,90105.0,90104.0,0.0657762]
[1765660153001,0.10957152,90105.0,90104.0,0.0657762]
[1765660153204,0.15599152,90105.0,90104.0,0.0657762]
[1765660155908,0.15599152,90105.0,90104.0,0.4265762]
[1765660159309,0.07623,90105.0,90104.0,0.4265762]
[1765660189245,0.07623,90105.0,90104.0,0.41548]
[1765660191233,0.05767,90091.0,90090.0,0.05484655]
[1765660192735,0.05767,90091.0,90090.0,0.05684655]
[1765660193644,0.05767,90091.0,90090.0,0.05584655]
[1765660193952,0.05767,90091.0,90090.0,0.05484655]
[1765660199855,0.11740321,90091.0,90090.0,0.05484655]
[1765660201060,0.05767,90091.0,90090.0,0.05484655]
[1765660203266,0.05867,90091.0,90090.0,0.05484655]
[1765660203454,0.05867,90091.0,90090.0,0.00016655]
[1765660203648,0.0554,90085.0,90084.0,0.3608]
[1765660203849,0.0554,90085.0,90084.0,0.33525635]
[1765660205860,0.0554,90085.0,90084.0,0.38993635]
[1765660213560,0.04606,90087.0,90086.0,0.05468]
[1765660213764,0.07308,90087.0,90086.0,0.05468]
[1765660214065,0.73816,90091.0,90090.0,0.05468]
[1765660214654,0.81776923,90091.0,90090.0,0.05468]
[1765660215069,0.73816,90091.0,90090.0,0.05468]
[1765660215357,0.81876923,90091.0,90090.0,0.05468]
[1765660215561,0.73916,90091.0,90090.0,0.05468]
[1765660215951,0.81976923,90091.0,90090.0,0.05468]
[1765660218258,0.74016,90091.0,90090.0,0.05468]
[1765660224466,0.68476,90091.0,90090.0,0.05468]
[1765660224660,0.002,90091.0,90090.0,0.05468]
[1765660224866,0.002,90091.0,90090.0,0.06585]
[1765660226077,0.001,90091.0,90090.0,0.06585]
[1765660226977,0.05968336,90095.0,90094.0,0.05468]
[1765660227180,0.03310841,90099.0,90098.0,0.05468]
[1765660227568,0.074,90102.0,90101.0,0.05468]
[1765660227769,0.07950377,90102.0,90101.0,0.05468]
[1765660229973,0.08350377,90102.0,90101.0,0.05468]
[1765660232480,0.02718377,90102.0,90101.0,0.05468]
[1765660232779,0.08350377,90102.0,90101.0,0.05468]
[1765660233174,0.08250377,90102.0,90101.0,0.05468]
[1765660233585,0.08150377,90102.0,90101.0,0.05468]
[1765660234990,0.076,90102.0,90101.0,0.05468]
[1765660246186,0.05632,90097.0,90096.0,0.4265772]
[1765660247294,0.05732,90097.0,90096.0,0.4265772]
[1765660247901,0.05832,90097.0,90096.0,0.4265772]
[1765660249405,0.11796933,90097.0,90096.0,0.4265772]
[1765660251295,0.05832,90097.0,90096.0,0.46972042]
[1765660254698,0.002,90097.0,90096.0,0.46972042]
[1765660254898,0.002,90097.0,90096.0,0.4265772]
[1765660255605,0.002,90097.0,90096.0,0.7873772]
[1765660256400,0.001,90097.0,90096.0,0.7873772]
[1765660256801,0.15610583,90102.0,90101.0,0.0657766]
[1765660258510,0.15810583,90102.0,90101.0,0.0657766]
[1765660259911,0.12824583,90102.0,90101.0,0.0657766]
[1765660260314,0.04868,90102.0,90101.0,0.0657766]
[1765660260512,0.07854,90102.0,90101.0,0.0657766]
[1765660260914,0.07854,90102.0,90101.0,0.4265766]
[1765660276025,0.07854,90102.0,90101.0,0.0657766]
[1765660276211,0.07854,90102.0,90101.0,0.4265766]
[1765660277115,0.07854,90102.0,90101.0,0.41548]
[1765660279729,0.07854,90102.0,90101.0,0.05468]
[1765660290848,0.05763,90101.0,90100.0,0.3608]
[1765660291557,0.05763,90101.0,90100.0,0.38814]
[1765660291855,0.05763,90101.0,90100.0,0.3608]
[1765660292155,0.05863,90101.0,90100.0,0.3608]
[1765660292456,0.05963,90101.0,90100.0,0.41548]
[1765660308367,0.09970021,90108.0,90107.0,0.0657759]
[1765660308570,0.00016655,90109.0,90108.0,0.05468]
[1765660308768,0.00016655,90109.0,90108.0,0.41548]
[1765660308966,0.05982595,90117.0,90114.0,0.011095]
[1765660309171,0.01783,90120.0,90119.0,0.0110944]
[1765660310266,0.05763,90117.0,90116.0,0.7216]
[1765660312264,0.05863,90117.0,90116.0,0.7216]
[1765660312873,0.05963,90117.0,90116.0,0.7216]
[1765660315071,0.05863,90117.0,90116.0,0.7216]
[1765660315277,0.05963,90117.0,90116.0,0.7216]
[1765660315575,0.05863,90117.0,90116.0,0.7216]
[1765660315773,0.05963,90117.0,90116.0,0.7216]
[1765660316167,0.11927531,90117.0,90116.0,0.7216]
[1765660316868,0.05963,90117.0,90116.0,0.3608]
[1765660319474,0.05863,90117.0,90116.0,0.3608]
[1765660319677,0.05963,90117.0,90116.0,0.3608]
[1765660324264,0.07624,90117.0,90116.0,0.3608]
[1765660325179,0.07339,90114.0,90112.0,0.3718952]
[1765660326474,0.01761,90114.0,90112.0,0.3718952]
[1765660327169,0.04676,90114.0,90112.0,0.3718952]
[1765660327373,0.07439,90114.0,90112.0,0.3718952]
[1765660327579,0.07539,90114.0,90112.0,0.3718952]
[1765660334080,0.15491113,90114.0,90112.0,0.3718952]
[1765660334482,0.15491113,90114.0,90112.0,0.0110952]
[1765660334672,0.15491113,90114.0,90112.0,0.3718952]
[1765660336080,0.13630113,90113.0,90112.0,0.3718952]
[1765660336480,0.13630113,90113.0,90112.0,0.0110952]
[1765660336681,0.13630113,90113.0,90112.0,0.3718952]
[1765660337081,0.05778,90113.0,90112.0,0.3718952]
[1765660337783,0.05778,90113.0,90112.0,0.0110952]
[1765660337983,0.05778,90113.0,90112.0,0.3718952]
[1765660338473,0.05878,90113.0,90112.0,0.3718952]
[1765660340781,0.05878,90113.0,90112.0,0.3608]
[1765660342683,0.0727,90111.0,90109.0,0.0110956]
[1765660342883,0.0559,90110.0,90109.0,0.0110956]
[1765660343087,0.0559,90110.0,90109.0,0.3718956]
[1765660347484,0.0579,90110.0,90109.0,0.3718956]
[1765660349484,0.002,90110.0,90109.0,0.3718956]
[1765660350486,0.001,90110.0,90109.0,0.3718956]
[1765660351373,0.002,90110.0,90109.0,0.3718956]
[1765660352285,0.001,90110.0,90109.0,0.3718956]
[1765660352485,0.002,90110.0,90109.0,0.3718956]
[1765660352890,0.0168,90111.0,90109.0,0.3718956]
[1765660353492,0.0168,90111.0,90109.0,0.41555934]
[1765660353693,0.0168,90111.0,90109.0,0.3718956]
[1765660357994,0.0168,90111.0,90109.0,0.41502381]
[1765660358688,0.0168,90111.0,90109.0,0.3718956]
[1765660360888,0.07202,90111.0,90109.0,0.3718956]
[1765660361295,0.07202,90111.0,90109.0,0.3608]
[1765660362699,0.05522,90110.0,90109.0,0.3608]
[1765660363898,0.07316,90099.0,90098.0,0.00016655]
[1765660366196,0.07416,90099.0,90098.0,0.00016655]
[1765660366403,0.07516,90099.0,90098.0,0.00016655]
[1765660366895,0.07416,90099.0,90098.0,0.00016655]
[1765660367095,0.07616,90099.0,90098.0,0.00016655]
[1765660368804,0.08178766,90099.0,90098.0,0.00016655]
[1765660369004,0.08078766,90099.0,90098.0,0.00016655]
[1765660369310,0.08178766,90099.0,90098.0,0.00016655]
[1765660369513,0.07978766,90099.0,90098.0,0.00016655]
[1765660369700,0.08178766,90099.0,90098.0,0.00016655]
[1765660369897,0.08278766,90099.0,90098.0,0.00016655]
[1765660385019,0.13530208,90099.0,90098.0,0.00016655]
[1765660386017,0.08278766,90099.0,90098.0,0.00016655]
[1765660389520,0.13619054,90099.0,90098.0,0.00016655]
[1765660390413,0.08278766,90099.0,90098.0,0.00016655]
[1765660391421,0.1625146,90099.0,90098.0,0.00016655]
[1765660392426,0.08278766,90099.0,90098.0,0.00016655]
[1765660394129,0.134843,90099.0,90098.0,0.00016655]
[1765660395532,0.08278766,90099.0,90098.0,0.00016655]
[1765660398628,0.13558186,90099.0,90098.0,0.00016655]
[1765660399235,0.08278766,90099.0,90098.0,0.00016655]
[1765660399435,0.05581,90069.0,90068.0,0.098739]
[1765660399628,0.05581,90069.0,90068.0,0.05767]
[1765660400437,0.05581,90069.0,90068.0,0.07514]
[1765660400623,0.05581,90069.0,90068.0,0.07814]
[1765660400935,0.05581,90069.0,90068.0,0.08114]
[1765660403337,0.11541657,90069.0,90068.0,0.08114]
[1765660404745,0.12110159,90069.0,90068.0,0.08114]
[1765660405241,0.06149502,90069.0,90068.0,0.08114]
[1765660407741,0.06149502,90069.0,90068.0,0.006]
[1765660408235,0.12103554,90069.0,90068.0,0.006]
[1765660408435,0.12103554,90069.0,90068.0,0.03419]
[1765660410047,0.06149502,90069.0,90068.0,0.03419]
[1765660412045,0.06149502,90069.0,90068.0,0.08043]
[1765660427766,0.03276502,90069.0,90068.0,0.08043]
[1765660428468,0.06215502,90069.0,90068.0,0.08043]
[1765660428664,0.00568502,90069.0,90068.0,0.08043]
[1765660428960,0.05656,90069.0,90068.0,0.08043]
[1765660437570,0.00557904,90070.0,90069.0,0.0564]
[1765660437868,0.11615187,90072.0,90071.0,0.0564]
[1765660438073,0.02887,90072.0,90071.0,0.0564]
[1765660438972,0.7607599,90075.0,90074.0,0.0564]
[1765660439162,0.69364,90075.0,90074.0,0.0564]
[1765660439367,0.69364,90075.0,90072.0,0.0281902]
[1765660439368,0.36629481,90076.0,90075.0,0.0674998]
[1765660440060,0.3608,90076.0,90075.0,0.0674998]
[1765660440259,0.00016646,90078.0,90077.0,0.0564]
[1765660440460,0.05995945,90078.0,90077.0,0.0564]
[1765660440762,0.00016646,90078.0,90077.0,0.0564]
[1765660441063,0.05618646,90078.0,90077.0,0.0564]
[1765660441570,0.05618646,90078.0,90077.0,0.02805]
[1765660441771,0.05602,90076.0,90075.0,0.03205]
[1765660441972,0.05602,90076.0,90075.0,0.0604]
[1765660442172,0.05602,90076.0,90075.0,0.0564]
[1765660443073,0.05602,90076.0,90075.0,0.0584]
[1765660443272,0.05602,90076.0,90075.0,0.0604]
[1765660444772,0.05602,90076.0,90075.0,0.0714998]
[1765660445475,0.05602,90076.0,90075.0,0.0604]
[1765660445871,0.05602,90076.0,90075.0,0.004]
[1765660446068,0.05602,90076.0,90075.0,0.03205]
[1765660446274,0.05602,90076.0,90075.0,0.0604]
[1765660446474,0.05602,90076.0,90075.0,0.03205]
[1765660448377,0.05602,90076.0,90075.0,0.004]
[1765660450084,0.07085,90076.0,90075.0,0.004]
[1765660451882,0.05602,90076.0,90075.0,0.0574]
[1765660452074,0.05602,90076.0,90075.0,0.0584]
[1765660454578,0.02887,90076.0,90075.0,0.0584]
[1765660454886,0.05602,90076.0,90075.0,0.0584]
[1765660462684,0.06999,90076.0,90075.0,0.002]